fUST/lending_fUST_20250625
["ID","MTS","AMOUNT","RATE_DAILY","PERIOD"]
[367533439,1750847439037,-500.0,0.00016999,2]
[367533440,1750847439047,-500.0,0.00016999,2]
[367533441,1750847439059,-45620.76890425,0.00017,2]
[367533442,1750847439069,-216.98,0.00017071,2]
[367533443,1750847439078,-457.08,0.00017071,2]
[367533444,1750847439088,-460.0,0.00017071,2]
[367533445,1750847439097,-171.94948624,0.00017071,2]
[367533446,1750847439106,-305.76,0.00017071,2]
[367533447,1750847439115,-460.0,0.00017071,2]
[367533448,1750847439125,-506.12,0.00017071,2]
[367533449,1750847439134,-460.0,0.00017071,2]
[367533450,1750847439144,-460.0,0.00017071,2]
[367533451,1750847439154,-460.0,0.00017071,2]
[367533452,1750847439163,-1883.11,0.00017071,2]
[367533453,1750847439172,-493.46,0.00017071,2]
[367533454,1750847439181,-2792.19,0.00017071,2]
[367533455,1750847439190,-460.0,0.00017071,2]
[367533456,1750847439200,-460.0,0.00017071,2]
[367533457,1750847439209,-460.0,0.00017071,2]
[367533458,1750847439219,-1485.84,0.00017071,2]
[367533459,1750847439228,-460.0,0.00017071,2]
[367533460,1750847439237,-413.39,0.00017071,2]
[367533461,1750847439247,-2563.82,0.00017071,2]
[367533462,1750847439256,-460.0,0.00017071,2]
[367533463,1750847439265,-756.48,0.00017071,2]
[367533464,1750847439275,-555.96,0.00017071,2]
[367533465,1750847439284,-460.0,0.00017071,2]
[367533466,1750847439294,-460.0,0.00017071,2]
[367533467,1750847439303,-435.75951801,0.00017071,2]
[367533468,1750847439312,-1312.04,0.00017071,2]
[367533469,1750847439321,-460.0,0.00017071,2]
[367533470,1750847439330,-460.0,0.00017071,2]
[367533471,1750847439339,-570.52635945,0.00017071,2]
[367533472,1750847439349,-3048.03,0.00017071,2]
[367533473,1750847439358,-460.0,0.00017071,2]
[367533474,1750847439367,-460.0,0.00017071,2]
[367533475,1750847439377,-460.0,0.00017071,2]
[367533476,1750847439386,-550.48340987,0.00017071,2]
[367533477,1750847439397,-1195.33,0.00017071,2]
[367533478,1750847439412,-460.0,0.00017071,2]
[367533479,1750847439422,-1329.24,0.00017071,2]
[367533480,1750847439432,-511.09,0.00017071,2]
[367533481,1750847439441,-390.0,0.00017071,2]
[367533482,1750847439451,-460.0,0.00017071,2]
[367533483,1750847439461,-755.74,0.00017071,2]
[367533484,1750847439470,-1002.74,0.00017071,2]
[367533485,1750847439481,-460.0,0.00017071,2]
[367533486,1750847439491,-460.0,0.00017071,2]
[367533487,1750847439500,-460.0,0.00017071,2]
[367533488,1750847439510,-804.13,0.00017071,2]
[367533489,1750847439519,-409.98,0.00017071,2]
[367533490,1750847439529,-566.92,0.00017071,2]
[367533491,1750847439539,-470.65,0.00017071,2]
[367533492,1750847439548,-460.0,0.00017071,2]
[367533493,1750847439723,-1376.53,0.00017071,2]
[367533494,1750847439735,-460.0,0.00017071,2]
[367533495,1750847439745,-460.0,0.00017071,2]
[367533496,1750847439754,-1681.92,0.00017071,2]
[367533497,1750847439764,-460.0,0.00017072,2]
[367533498,1750847439774,-460.0,0.00017072,2]
[367533499,1750847439783,-564.19,0.00017072,2]
[367533500,1750847439793,-460.0,0.00017072,2]
[367533501,1750847439802,-460.0,0.00017072,2]
[367533502,1750847439813,-215.592634,0.00017072,2]
[367533503,1750847439822,-586.51306352,0.00017132,2]
[367533504,1750847439831,-352.59,0.00017132,2]
[367533505,1750847439843,-840.25729379,0.00017245,2]
[367533506,1750847439852,-917.73677414,0.00017275,2]
[367533507,1750847439863,-530.28,0.00017335,3]
[367533508,1750847439876,-460.0,0.00017345,2]
[367533509,1750847439885,-460.0,0.00017345,2]
[367533510,1750847439895,-506.12,0.00017345,2]
[367533511,1750847439905,-460.0,0.00017345,2]
[367533512,1750847439916,-460.0,0.00017345,2]
[367533513,1750847439925,-460.0,0.00017345,2]
[367533514,1750847439937,-1883.11,0.00017345,2]
[367533515,1750847439946,-2792.19,0.00017345,2]
[367533516,1750847439957,-460.0,0.00017345,2]
[367533517,1750847439967,-460.0,0.00017345,2]
[367533518,1750847439976,-460.0,0.00017345,2]
[367533519,1750847439986,-1485.84,0.00017345,2]
[367533520,1750847439996,-460.0,0.00017345,2]
[367533521,1750847440006,-2563.82,0.00017345,2]
[367533522,1750847440017,-460.0,0.00017345,2]
[367533523,1750847440028,-756.48,0.00017345,2]
[367533525,1750847440038,-555.96,0.00017345,2]
[367533526,1750847440047,-460.0,0.00017345,2]
[367533527,1750847440058,-460.0,0.00017345,2]
[367533528,1750847440068,-1312.04,0.00017345,2]
[367533529,1750847440077,-460.0,0.00017345,2]
[367533531,1750847440087,-460.0,0.00017345,2]
[367533533,1750847440097,-3048.03,0.00017345,2]
[367533535,1750847440106,-460.0,0.00017345,2]
[367533537,1750847440114,-460.0,0.00017345,2]
[367533539,1750847440124,-460.0,0.00017345,2]
[367533541,1750847440133,-1195.33,0.00017345,2]
[367533543,1750847440143,-460.0,0.00017345,2]
[367533545,1750847440152,-1329.24,0.00017345,2]
[367533547,1750847440161,-511.09,0.00017345,2]
[367533549,1750847440170,-460.0,0.00017345,2]
[367533551,1750847440179,-755.74,0.00017345,2]
[367533553,1750847440188,-1002.74,0.00017345,2]
[367533555,1750847440198,-404.57742949,0.00017345,2]
[367533557,1750847440207,-460.0,0.00017345,2]
[367533559,1750847440217,-460.0,0.00017345,2]
[367533561,1750847440226,-804.13,0.00017345,2]
[367533563,1750847440235,-460.0,0.00017345,2]
[367533565,1750847440243,-1376.53,0.00017345,2]
[367533567,1750847440254,-460.0,0.00017345,2]
[367533569,1750847440263,-460.0,0.00017345,2]
[367533571,1750847440272,-1681.92,0.00017345,2]
[367533573,1750847440281,-460.0,0.00017346,2]
[367533574,1750847440290,-460.0,0.00017346,2]
[367533577,1750847440300,-460.0,0.00017346,2]
[367533579,1750847440309,-649.43794077,0.00017405,2]
[367533581,1750847440318,-500.0,0.00017576,2]
[367533583,1750847440328,-500.0,0.00017576,2]
[367533585,1750847440337,-460.0,0.00017619,2]
[367533587,1750847440346,-506.12,0.00017619,2]
[367533589,1750847440355,-460.0,0.00017619,2]
[367533591,1750847440365,-460.0,0.00017619,2]
[367533593,1750847440375,-460.0,0.00017619,2]
[367533595,1750847440384,-1883.11,0.00017619,2]
[367533597,1750847440394,-2792.19,0.00017619,2]
[367533599,1750847440403,-460.0,0.00017619,2]
[367533601,1750847440414,-460.0,0.00017619,2]
[367533603,1750847440424,-245.41,0.00017619,2]
[367533605,1750847440435,-1485.84,0.00017619,2]
[367533607,1750847440444,-460.0,0.00017619,2]
[367533609,1750847440454,-2563.82,0.00017619,2]
[367533611,1750847440463,-470.06791648,0.00017619,2]
[367533613,1750847440472,-756.48,0.00017619,2]
[367533615,1750847440481,-555.96,0.00017619,2]
[367533617,1750847440490,-186.25,0.00017619,2]
[367533619,1750847440499,-460.0,0.00017619,2]
[367533621,1750847440509,-1312.04,0.00017619,2]
[367533623,1750847440518,-460.0,0.00017619,2]
[367533625,1750847440527,-460.0,0.00017619,2]
[367533627,1750847440537,-3048.03,0.00017619,2]
[367533629,1750847440547,-460.0,0.00017619,2]
[367533631,1750847440556,-460.0,0.00017619,2]
[367533633,1750847440566,-528.44,0.00017619,2]
[367533635,1750847440575,-1195.33,0.00017619,2]
[367533637,1750847440584,-460.0,0.00017619,2]
[367533639,1750847440593,-511.09,0.00017619,2]
[367533641,1750847440603,-1329.24,0.00017619,2]
[367533643,1750847440612,-460.0,0.00017619,2]
[367533644,1750847440621,-755.74,0.00017619,2]
[367533647,1750847440631,-1002.74,0.00017619,2]
[367533649,1750847440640,-460.0,0.00017619,2]
[367533650,1750847440650,-804.13,0.00017619,2]
[367533652,1750847440659,-460.0,0.00017619,2]
[367533655,1750847440669,-1376.53,0.00017619,2]
[367533657,1750847440679,-460.0,0.00017619,2]
[367533659,1750847440688,-460.0,0.00017619,2]
[367533661,1750847440697,-1681.92,0.00017619,2]
[367533663,1750847440706,-460.0,0.0001762,2]
[367533665,1750847440715,-460.0,0.0001762,2]
[367533667,1750847440724,-460.0,0.0001762,2]
[367533669,1750847440733,-709.27623139,0.00017705,2]
[367533671,1750847440742,-500.0,0.00017724,2]
[367533673,1750847440751,-500.0,0.00017767,2]
[367533674,1750847440763,-230.22714675,0.00017767,2]
[367533676,1750847440775,-160.0,0.00017767,2]
[367533679,1750847440784,-524.21181985,0.00017767,2]
[367533681,1750847440793,-836.86812089,0.00017767,2]
[367533683,1750847440802,-160.0,0.00017767,2]
[367533685,1750847440812,-213.69531788,0.00017767,2]
[367533687,1750847440821,-12558.06783089,0.00017767,2]
[367533689,1750847440830,-846.80634355,0.00017767,2]
[367533691,1750847440840,-425.18553072,0.00017767,2]
[367533693,1750847440849,-160.0,0.00017767,2]
[367533695,1750847440859,-160.0,0.00017782,2]
[367533697,1750847440868,-160.0,0.00017782,2]
[367533698,1750847440877,-160.0,0.00017782,2]
[367533700,1750847440885,-160.0,0.00017782,2]
[367533702,1750847440895,-160.0,0.00017782,2]
[367533704,1750847440904,-840.25729378,0.00017793,2]
[367533706,1750847440913,-176.42018452,0.00017794,2]
[367533708,1750847440922,-500.0,0.00017794,2]
[367533710,1750847440932,-460.0,0.00017893,2]
[367533712,1750847440941,-506.12,0.00017893,2]
[367533714,1750847440950,-460.0,0.00017893,2]
[367533716,1750847440960,-460.0,0.00017893,2]
[367533718,1750847440969,-460.0,0.00017893,2]
[367533720,1750847440978,-1883.11,0.00017893,2]
[367533722,1750847440987,-2792.19,0.00017893,2]
[367533724,1750847440997,-569.56,0.00017893,2]
[367533726,1750847441006,-591.23,0.00017893,2]
[367533728,1750847441016,-1485.84,0.00017893,2]
[367533730,1750847441025,-460.0,0.00017893,2]
[367533732,1750847441034,-2563.82,0.00017893,2]
[367533734,1750847441043,-756.48,0.00017893,2]
[367533736,1750847441052,-555.96,0.00017893,2]
[367533738,1750847441062,-1312.04,0.00017893,2]
[367533740,1750847441071,-460.0,0.00017893,2]
[367533742,1750847441081,-525.43,0.00017893,2]
[367533744,1750847441091,-3048.03,0.00017893,2]
[367533746,1750847441101,-460.0,0.00017893,2]
[367533749,1750847441111,-460.0,0.00017893,2]
[367533750,1750847441121,-1195.33,0.00017893,2]
[367533753,1750847441131,-460.0,0.00017893,2]
[367533755,1750847441140,-511.09,0.00017893,2]
[367533757,1750847441149,-1329.24,0.00017893,2]
[367533759,1750847441158,-460.0,0.00017893,2]
[367533761,1750847441167,-755.74,0.00017893,2]
[367533762,1750847441176,-1002.74,0.00017893,2]
[367533764,1750847441185,-460.0,0.00017893,2]
[367533766,1750847441194,-804.13,0.00017893,2]
[367533769,1750847441204,-460.0,0.00017893,2]
[367533771,1750847441221,-1376.53,0.00017893,2]
[367533774,1750847441233,-460.0,0.00017893,2]
[367533776,1750847441244,-460.0,0.00017893,2]
[367533778,1750847441253,-1681.92,0.00017893,2]
[367533780,1750847441263,-355.81,0.00017894,2]
[367533782,1750847441272,-460.0,0.00017894,2]
[367533784,1750847441282,-460.0,0.00017894,2]
[367533786,1750847441295,-10655.70267449,0.000179,2]
[367533788,1750847441304,-582.16417753,0.00017992,2]
[367533790,1750847441313,-500.0,0.00018068,2]
[367533792,1750847441323,-2299.0159498,0.00018082,2]
[367533794,1750847441332,-1000.0,0.00018124,2]
[367533796,1750847441342,-1000.0,0.00018124,2]
[367533798,1750847441352,-10655.70267444,0.00018141,2]
[367533800,1750847441362,-344.31061001,0.00018167,2]
[367533802,1750847441372,-506.12,0.00018167,2]
[367533804,1750847441382,-460.0,0.00018167,2]
[367533806,1750847441393,-460.0,0.00018167,2]
[367533808,1750847441403,-460.0,0.00018167,2]
[367533810,1750847441413,-1883.11,0.00018167,2]
[367533812,1750847441422,-2792.19,0.00018167,2]
[367533814,1750847441432,-1485.84,0.00018167,2]
[367533816,1750847441442,-460.0,0.00018167,2]
[367533819,1750847441452,-2563.82,0.00018167,2]
[367533821,1750847441463,-756.48,0.00018167,2]
[367533823,1750847441472,-555.96,0.00018167,2]
[367533825,1750847441482,-1312.04,0.00018167,2]
[367533827,1750847441492,-460.0,0.00018167,2]
[367533829,1750847441502,-3048.03,0.00018167,2]
[367533831,1750847441512,-460.0,0.00018167,2]
[367533833,1750847441522,-460.0,0.00018167,2]
[367533835,1750847441531,-1195.33,0.00018167,2]
[367533837,1750847441541,-460.0,0.00018167,2]
[367533839,1750847441550,-1329.24,0.00018167,2]
[367533841,1750847441560,-511.09,0.00018167,2]
[367533843,1750847441570,-460.0,0.00018167,2]
[367533845,1750847441580,-755.74,0.00018167,2]
[367533847,1750847441590,-1002.74,0.00018167,2]
[367533849,1750847441599,-200.89,0.00018167,2]
[367533851,1750847441609,-804.13,0.00018167,2]
[367533853,1750847441619,-460.0,0.00018167,2]
[367533855,1750847441629,-1376.53,0.00018167,2]
[367533857,1750847441639,-306.83,0.00018167,2]
[367533860,1750847441649,-460.0,0.00018167,2]
[367533862,1750847441659,-1681.92,0.00018167,2]
[367533864,1750847441668,-460.0,0.00018168,2]
[367533866,1750847441678,-460.0,0.00018168,2]
[367533868,1750847441687,-151.0,0.0001817,2]
[367533870,1750847441696,-151.0,0.0001817,2]
[367533872,1750847441706,-151.0,0.0001817,2]
[367533874,1750847441716,-151.0,0.0001817,2]
[367533876,1750847441726,-207.4,0.0001817,2]
[367533878,1750847441735,-151.0,0.0001817,2]
[367533880,1750847441744,-500.0,0.0001817,2]
[367533882,1750847441753,-500.0,0.0001817,2]
[367533884,1750847441763,-151.0,0.0001817,2]
[367533886,1750847441772,-1688.0,0.0001817,2]
[367533888,1750847441781,-288.89272804,0.0001817,2]
[367533890,1750847441791,-500.0,0.0001817,2]
[367533892,1750847441800,-5000.0,0.0001817,2]
[367533894,1750847441809,-500.0,0.0001817,2]
[367533896,1750847441819,-500.0,0.0001817,2]
[367533898,1750847441828,-500.0,0.0001817,2]
[367533900,1750847441837,-500.0,0.0001817,2]
[367533902,1750847441846,-500.0,0.0001817,2]
[367533904,1750847441855,-500.0,0.0001817,2]
[367533906,1750847441865,-500.0,0.0001817,2]
[367533908,1750847441876,-500.0,0.0001817,2]
[367533911,1750847441886,-500.0,0.0001817,2]
[367533913,1750847441895,-500.0,0.0001817,2]
[367533914,1750847441905,-500.0,0.0001817,2]
[367533916,1750847441914,-500.0,0.0001817,2]
[367533918,1750847441923,-500.0,0.0001817,2]
[367533920,1750847441932,-500.0,0.0001817,2]
[367533922,1750847441942,-500.0,0.0001817,2]
[367533925,1750847441953,-500.0,0.0001817,2]
[367533927,1750847441962,-500.0,0.0001817,2]
[367533929,1750847441972,-500.0,0.0001817,2]
[367533931,1750847441981,-500.0,0.0001817,2]
[367533933,1750847441990,-500.0,0.0001817,2]
[367533935,1750847442000,-500.0,0.0001817,2]
[367533937,1750847442010,-500.0,0.0001817,2]
[367533939,1750847442023,-500.0,0.0001817,2]
[367533941,1750847442033,-500.0,0.0001817,2]
[367533943,1750847442042,-500.0,0.0001817,2]
[367533945,1750847442051,-500.0,0.0001817,2]
[367533947,1750847442062,-500.0,0.0001817,2]
[367533949,1750847442071,-500.0,0.0001817,2]
[367533951,1750847442080,-500.0,0.0001817,2]
[367533953,1750847442089,-500.0,0.0001817,2]
[367533955,1750847442100,-151.0,0.0001817,2]
[367533957,1750847442110,-151.0,0.0001817,2]
[367533959,1750847442119,-227.54651037,0.0001817,2]
[367533962,1750847442130,-500.0,0.0001817,2]
[367533964,1750847442140,-500.0,0.0001817,2]
[367533966,1750847442150,-500.0,0.0001817,2]
[367533968,1750847442159,-20271.32849344,0.0001817,2]
[367533971,1750847442176,-4728.67150656,0.0001817,2]
[367533973,1750847442186,-16561.60680929,0.0001817,2]
[367533975,1750847442195,-359.98836883,0.00018202,2]
[367533977,1750847442205,-1750.456,0.00018225,2]
[367533979,1750847442215,-151.0,0.00018229,2]
[367533981,1750847442224,-151.0,0.00018229,2]
[367533983,1750847442233,-152.403659,0.00018229,2]
[367533985,1750847442242,-500.0,0.00018235,2]
[367533987,1750847442251,-500.0,0.00018235,2]
[367533989,1750847442260,-1000.0,0.00018271,2]
[367533991,1750847442270,-2159.0,0.00018279,2]
[367533993,1750847442279,-1815.222872,0.0001828,2]
[367533995,1750847442288,-500.0,0.00018332,2]
[367533997,1750847442297,-500.0,0.00018332,2]
[367533998,1750847442307,-500.0,0.00018332,2]
[367533999,1750847442316,-500.0,0.00018332,2]
[367534000,1750847442325,-1882.38611826,0.00018335,2]
[367534001,1750847442334,-840.25729378,0.00018342,2]
[367534002,1750847442343,-1000.0,0.00018342,2]
[367534003,1750847442353,-420.0,0.00018348,2]
[367534004,1750847442361,-1680.0,0.00018349,2]
[367534005,1750847442371,-10655.70267444,0.00018383,2]
[367534006,1750847442381,-1952.03440464,0.0001839,2]
[367534007,1750847442390,-180.01980218,0.000184,2]
[367534008,1750847442399,-506.12,0.00018441,2]
[367534009,1750847442407,-460.0,0.00018441,2]
[367534010,1750847442417,-460.0,0.00018441,2]
[367534011,1750847442426,-460.0,0.00018441,2]
[367534012,1750847442435,-1883.11,0.00018441,2]
[367534013,1750847442444,-2792.19,0.00018441,2]
[367534014,1750847442454,-1485.84,0.00018441,2]
[367534015,1750847442463,-460.0,0.00018441,2]
[367534017,1750847442472,-2563.82,0.00018441,2]
[367534019,1750847442481,-756.48,0.00018441,2]
[367534021,1750847442491,-555.96,0.00018441,2]
[367534023,1750847442500,-1312.04,0.00018441,2]
[367534025,1750847442510,-460.0,0.00018441,2]
[367534027,1750847442519,-3048.03,0.00018441,2]
[367534029,1750847442529,-460.0,0.00018441,2]
[367534031,1750847442538,-460.0,0.00018441,2]
[367534033,1750847442548,-1195.33,0.00018441,2]
[367534035,1750847442557,-460.0,0.00018441,2]
[367534038,1750847442567,-1329.24,0.00018441,2]
[367534040,1750847442576,-511.09,0.00018441,2]
[367534042,1750847442585,-460.0,0.00018441,2]
[367534044,1750847442595,-755.74,0.00018441,2]
[367534046,1750847442604,-1002.74,0.00018441,2]
[367534048,1750847442613,-804.13,0.00018441,2]
[367534050,1750847442623,-460.0,0.00018441,2]
[367534052,1750847442632,-1376.53,0.00018441,2]
[367534054,1750847442642,-460.0,0.00018441,2]
[367534056,1750847442651,-1681.92,0.00018441,2]
[367534058,1750847442662,-460.0,0.00018442,2]
[367534061,1750847442671,-460.0,0.00018442,2]
[367534064,1750847442681,-2024.25967761,0.00018445,2]
[367534066,1750847442690,-151.0,0.00018466,2]
[367534068,1750847442699,-151.0,0.00018466,2]
[367534070,1750847442709,-160.0,0.00018491,3]
[367534072,1750847442719,-2099.15728568,0.000185,2]
[367534074,1750847442729,-233.671493,0.00018503,2]
[367534076,1750847442738,-233.671493,0.00018503,2]
[367534079,1750847442748,-151.0,0.00018503,2]
[367534081,1750847442757,-1688.0,0.00018555,2]
[367534083,1750847442766,-10655.70267444,0.00018624,2]
[367534085,1750847442776,-1500.0,0.00018672,2]
[367534087,1750847442786,-709.27623139,0.00018713,2]
[367534089,1750847442795,-506.12,0.00018715,2]
[367534091,1750847442804,-460.0,0.00018715,2]
[367534093,1750847442814,-460.0,0.00018715,2]
[367534095,1750847442823,-284.92106644,0.00018715,2]
[367534097,1750847442833,-1883.11,0.00018715,2]
[367534099,1750847442843,-2792.19,0.00018715,2]
[367534101,1750847442852,-460.0,0.00018715,2]
[367534103,1750847442863,-1485.84,0.00018715,2]
[367534105,1750847442874,-2563.82,0.00018715,2]
[367534107,1750847442883,-756.48,0.00018715,2]
[367534109,1750847442893,-555.96,0.00018715,2]
[367534111,1750847442903,-1312.04,0.00018715,2]
[367534113,1750847442912,-278.44757873,0.00018715,2]
[367534115,1750847442922,-3048.03,0.00018715,2]
[367534117,1750847442931,-460.0,0.00018715,2]
[367534119,1750847442942,-460.0,0.00018715,2]
[367534122,1750847442952,-1195.33,0.00018715,2]
[367534139,1750847443101,-166.98,0.00018715,2]
[367534141,1750847443111,-1329.24,0.00018715,2]
[367534143,1750847443121,-511.09,0.00018715,2]
[367534145,1750847443130,-460.0,0.00018715,2]
[367534147,1750847443140,-755.74,0.00018715,2]
[367534149,1750847443151,-1002.74,0.00018715,2]
[367534151,1750847443160,-804.13,0.00018715,2]
[367534153,1750847443170,-460.0,0.00018715,2]
[367534155,1750847443179,-1376.53,0.00018715,2]
[367534157,1750847443189,-460.0,0.00018715,2]
[367534159,1750847443198,-1681.92,0.00018715,2]
[367534161,1750847443207,-460.0,0.00018716,2]
[367534163,1750847443216,-460.0,0.00018716,2]
[367534165,1750847443226,-151.0,0.00018718,2]
[367534167,1750847443235,-151.0,0.00018718,2]
[367534169,1750847443244,-152.61247216,0.00018718,2]
[367534171,1750847443253,-5000.0,0.00018718,2]
[367534173,1750847443263,-25000.0,0.00018718,2]
[367534175,1750847443273,-151.0,0.00018776,2]
[367534177,1750847443282,-151.0,0.00018776,2]
[367534179,1750847443291,-861.16744455,0.00018783,2]
[367534181,1750847443300,-500.0,0.00018783,2]
[367534183,1750847443310,-1210.365,0.00018784,2]
[367534185,1750847443318,-177.798,0.00018784,2]
[367534187,1750847443327,-430.78587779,0.00018797,2]
[367534189,1750847443337,-1682.0,0.0001883,2]
[367534191,1750847443346,-160.0,0.00018856,4]
[367534193,1750847443356,-10655.70267444,0.00018866,2]
[367534195,1750847443366,-1000.0,0.0001888,2]
[367534197,1750847443375,-1000.0,0.0001888,2]
[367534199,1750847443385,-1000.0,0.0001888,2]
[367534201,1750847443394,-840.25729378,0.0001889,2]
[367534203,1750847443403,-1011.55355153,0.0001889,2]
[367534205,1750847443412,-3313.46329159,0.000189,2]
[367534207,1750847443422,-2276.184682,0.00018911,2]
[367534209,1750847443431,-506.12,0.00018989,2]
[367534213,1750847443441,-460.0,0.00018989,2]
[367534215,1750847443450,-460.0,0.00018989,2]
[367534216,1750847443459,-1883.11,0.00018989,2]
[367534218,1750847443468,-2792.19,0.00018989,2]
[367534220,1750847443478,-460.0,0.00018989,2]
[367534222,1750847443487,-1485.84,0.00018989,2]
[367534224,1750847443496,-2563.82,0.00018989,2]
[367534226,1750847443505,-756.48,0.00018989,2]
[367534228,1750847443514,-555.96,0.00018989,2]
[367534230,1750847443524,-1312.04,0.00018989,2]
[367534233,1750847443533,-3048.03,0.00018989,2]
[367534235,1750847443543,-460.0,0.00018989,2]
[367534237,1750847443552,-460.0,0.00018989,2]
[367534239,1750847443561,-1195.33,0.00018989,2]
[367534240,1750847443571,-1329.24,0.00018989,2]
[367534242,1750847443580,-511.09,0.00018989,2]
[367534244,1750847443589,-460.0,0.00018989,2]
[367534246,1750847443599,-755.74,0.00018989,2]
[367534248,1750847443608,-1002.74,0.00018989,2]
[367534251,1750847443618,-804.13,0.00018989,2]
[367534253,1750847443627,-460.0,0.00018989,2]
[367534255,1750847443637,-1376.53,0.00018989,2]
[367534257,1750847443646,-460.0,0.00018989,2]
[367534259,1750847443656,-1681.92,0.00018989,2]
[367534261,1750847443665,-460.0,0.0001899,2]
[367534263,1750847443675,-460.0,0.0001899,2]
[367534265,1750847443684,-233.671493,0.00019,2]
[367534267,1750847443694,-233.671493,0.00019,2]
[367534269,1750847443703,-151.0,0.00019,2]
[367534271,1750847443711,-430.78587779,0.00019003,2]
[367534273,1750847443721,-151.0,0.00019029,2]
[367534275,1750847443730,-151.0,0.00019029,2]
[367534277,1750847443740,-10655.70267444,0.00019107,2]
[367534279,1750847443750,-1682.0,0.00019109,2]
[367534281,1750847443759,-1682.0,0.00019128,2]
[367534283,1750847443769,-151.0,0.00019136,2]
[367534285,1750847443778,-151.0,0.00019136,2]
[367534287,1750847443788,-151.0,0.00019136,2]
[367534289,1750847443797,-151.0,0.00019136,2]
[367534291,1750847443807,-500.0,0.00019164,2]
[367534293,1750847443816,-965.0,0.00019174,2]
[367534295,1750847443826,-500.0,0.00019178,2]
[367534297,1750847443835,-151.0,0.00019178,2]
[367534299,1750847443844,-198.0,0.00019178,2]
[367534301,1750847443853,-209.50242372,0.00019178,2]
[367534303,1750847443862,-151.0,0.00019178,2]
[367534305,1750847443872,-151.0,0.00019178,2]
[367534307,1750847443881,-151.0,0.00019178,2]
[367534309,1750847443890,-151.0,0.00019178,2]
[367534311,1750847443900,-2488.0360747,0.00019178,2]
[367534313,1750847443909,-519.222514,0.00019178,2]
[367534315,1750847443918,-151.0,0.000192,2]
[367534317,1750847443928,-500.0,0.00019205,2]
[367534319,1750847443937,-160.0,0.0001922,5]
[367534321,1750847443946,-2000.0,0.0001922,2]
[367534323,1750847443955,-500.0,0.00019233,2]
[367534325,1750847443964,-500.0,0.0001926,2]
[367534327,1750847443973,-506.12,0.00019263,2]
[367534329,1750847443983,-460.0,0.00019263,2]
[367534331,1750847443991,-460.0,0.00019263,2]
[367534333,1750847444000,-1883.11,0.00019263,2]
[367534335,1750847444010,-2792.19,0.00019263,2]
[367534337,1750847444024,-460.0,0.00019263,2]
[367534339,1750847444034,-1485.84,0.00019263,2]
[367534341,1750847444043,-2563.82,0.00019263,2]
[367534343,1750847444052,-756.48,0.00019263,2]
[367534345,1750847444066,-555.96,0.00019263,2]
[367534347,1750847444075,-1312.04,0.00019263,2]
[367534349,1750847444084,-3048.03,0.00019263,2]
[367534351,1750847444093,-460.0,0.00019263,2]
[367534353,1750847444104,-460.0,0.00019263,2]
[367534355,1750847444113,-1195.33,0.00019263,2]
[367534357,1750847444122,-1329.24,0.00019263,2]
[367534359,1750847444131,-511.09,0.00019263,2]